[Event "Basque-ch 2019"]
[Site "Getxo"]
[Date "2019.04.24"]
[Round "2.6"]
[White "Segura Del Frago, Imanol"]
[Black "Basto Auzmendi, Mario"]
[Result "0-1"]
[ECO "A39"]
[WhiteElo "2028"]
[BlackElo "1981"]
[Annotator "NA RC"]
[PlyCount "76"]
[EventDate "2019.04.22"]
[EventType "swiss"]
[EventCountry "ESP"]
[SourceTitle "playchess.com"]
[Source "ChessBase"]
[SourceQuality "1"]
[TimeControl "5400+30"]

1. c4 {[%emt 1:30:30]} Nf6 {[%emt 1:30:30]} 2. Nc3 {[%emt 0:00:30]} g6 {[%emt 0:00:30]} 3. g3 {[%emt 0:00:30]} Bg7 {[%emt 0:00:30]} 4. Bg2 {[%emt 0:00:30]} d6 {[%emt 0:00:30]} 5. e4 {[%emt 0:00:30]} c5 {[%emt 0:00:30]} 6. Nge2 {[%emt 0:00:30]} Nc6 {[%emt 0:00:30]} 7. O-O {[%emt 0:00:30]} O-O {[%emt 0:00:30]} 8. d4 {[%emt 0:00:30]} cxd4 {[%emt 0:00:30]} 9. Nxd4 {[%emt 0:00:30]} Nxd4 {[%emt 0:00:30]} 10. Qxd4 {[%emt 0:00:30]} Be6 {[%emt 0:00:30]} 11. Qd3 {[%emt 0:00:30]} Rc8 {[%emt 0:00:30]} 12. Nd5 {[%emt 0:00:30]} Nxd5 {[%emt 0:00:30]} 13. exd5 {[%emt 0:00:30]} Bf5 {[%emt 0:00:30]} 14. Qe2 {[%emt 0:00:30]} Qd7 {[%emt 0:00:30]} 15. Bg5 {[%emt 0:00:30]} h6 {[%emt 0:00:30]} 16. Be3 {[%emt 0:00:30]} b5 {[%emt 0:00:30]} 17. Rac1 {[%emt 0:00:30]} bxc4 {[%emt 0:00:30]} 18. Rxc4 {[%emt 0:00:30]} Rxc4 {[%emt 0:00:30]} 19. Qxc4 {[%emt 0:00:30]} Rc8 {[%emt 0:00:30]} 20. Qa6 {[%emt 0:00:30]} Bxb2 {[%emt 0:00:30]} 21. Bxh6 {[%emt 0:00:30]} Rc3 {[%emt 0:00:30]} 22. Qe2 {[%emt 0:00:30]} Rc2 {[%emt 0:00:30]} 23. Qd1 {[%emt 0:00:30]} Qa4 {[%emt 0:00:30]} 24. Re1 {[%emt 0:00:30]} Bf6 {[%emt 0:00:30]} 25. a3 {[%emt 0:00:30]} Qd4 {[%emt 0:00:30]} 26. Be3 {[%emt 0:00:30]} Qxd1 {[%emt 0:00:30]} 27. Rxd1 {[%emt 0:00:30]} a5 {[%emt 0:00:30]} 28. Bf3 {[%emt 0:00:30]} Ra2 {[%emt 0:00:30]} 29. g4 {[%emt 0:00:30]} Bc2 {[%emt 0:00:30]} 30. Rc1 {[%emt 0:00:30]} Bc3 {[%emt 0:00:30]} 31. h3 {[%emt 0:00:30]} Be5 {[%emt 0:00:30]} 32. Kg2 {[%emt 0:00:30]} a4 {[%emt 0:00:30]} 33. h4 {[%emt 0:00:30]} Kg7 {[%emt 0:00:30]} 34. g5 {[%emt 0:00:30]} Bd3 {[%emt 0:00:30]} 35. Rc7 {[%emt 0:00:30]} Rxa3 {[%emt 0:00:30]} 36. Rxe7 {[%emt 0:00:30]} Ra1 {[%emt 0:00:30]} 37. h5 {[%emt 0:00:30]} Bf1+ {[%emt 0:00:30]} 38. Kg1 {[%emt 0:00:30]} Bh3+ {[%emt 0:00:30]} 0-1

[Event "Basque-ch 2019"]
[Site "Getxo"]
[Date "2019.04.26"]
[Round "5.6"]
[White "Munoz Avila, Jose Luis"]
[Black "Segura Del Frago, Imanol"]
[Result "1-0"]
[ECO "E05"]
[WhiteElo "2146"]
[BlackElo "2028"]
[Annotator "RC"]
[PlyCount "93"]
[EventDate "2019.04.22"]
[EventType "swiss"]
[EventCountry "ESP"]
[SourceTitle "playchess.com"]
[Source "ChessBase"]
[SourceQuality "1"]
[TimeControl "5400+30"]

1. Nf3 {[%emt 1:30:30]} Nf6 {[%emt 1:30:30]} 2. d4 {[%emt 0:00:30]} d5 {[%emt 0:00:30]} 3. c4 {[%emt 0:00:30]} e6 {[%emt 0:00:30]} 4. g3 {[%emt 0:00:30]} Be7 {[%emt 0:00:30]} 5. Bg2 {[%emt 0:00:30]} O-O {[%emt 0:00:30]} 6. O-O {[%emt 0:00:30]} dxc4 {[%emt 0:00:30]} 7. Qa4 {[%emt 0:00:30]} a6 {[%emt 0:00:30]} 8. Qxc4 {[%emt 0:00:30]} b5 {[%emt 0:00:30]} 9. Qc2 {[%emt 0:00:30]} Bb7 {[%emt 0:00:30]} 10. Bd2 {[%emt 0:00:30]} Be4 {[%emt 0:00:30]} 11. Qc1 {[%emt 0:00:30]} Nbd7 {[%emt 0:00:30]} 12. Ba5 {[%emt 0:00:30]} Rc8 {[%emt 0:00:30]} 13. Nbd2 {[%emt 0:00:30]} Ba8 {[%emt 0:00:30]} 14. Qc2 {[%emt 0:00:30]} Qe8 {[%emt 0:00:30]} 15. b4 {[%emt 0:00:30]} Bd6 {[%emt 0:00:30]} 16. Rac1 {[%emt 0:00:30]} e5 {[%emt 0:00:30]} 17. dxe5 {[%emt 0:00:30]} Nxe5 {[%emt 0:00:30]} 18. Nxe5 {[%emt 0:00:30]} Bxg2 {[%emt 0:00:30]} 19. Kxg2 {[%emt 0:00:30]} Qxe5 {[%emt 0:00:30]} 20. Nb3 {[%emt 0:00:30]} Rfe8 {[%emt 0:00:30]} 21. Rfd1 {[%emt 0:00:30]} Qh5 {[%emt 0:00:30]} 22. Rxd6 {[%emt 0:00:30]} Rxe2 {[%emt 0:00:30]} 23. Rd2 {[%emt 0:00:30]} Rce8 {[%emt 0:00:30]} 24. Rxe2 {[%emt 0:00:30]} Rxe2 {[%emt 0:00:30]} 25. Qc5 {[%emt 0:00:30]} Nd5 {[%emt 0:00:30]} 26. Rd1 {[%emt 0:00:30]} Rxf2+ {[%emt 0:00:30]} 27. Qxf2 {[%emt 0:00:30]} Qxd1 {[%emt 0:00:30]} 28. Nc5 {[%emt 0:00:30]} h5 {[%emt 0:00:30]} 29. Nxa6 {[%emt 0:00:30]} Nf6 {[%emt 0:00:30]} 30. h3 {[%emt 0:00:30]} Ne4 {[%emt 0:00:30]} 31. Qe3 {[%emt 0:00:30]} Nd2 {[%emt 0:00:30]} 32. Qe8+ {[%emt 0:00:30]} Kh7 {[%emt 0:00:30]} 33. Qxf7 {[%emt 0:00:30]} Qe2+ {[%emt 0:00:30]} 34. Qf2 {[%emt 0:00:30]} Qe4+ {[%emt 0:00:30]} 35. Kg1 {[%emt 0:00:30]} Nf3+ {[%emt 0:00:30]} 36. Kf1 {[%emt 0:00:30]} Nd4 {[%emt 0:00:30]} 37. Qg2 {[%emt 0:00:30]} Qb1+ {[%emt 0:00:30]} 38. Kf2 {[%emt 0:00:30]} Qxa2+ {[%emt 0:00:30]} 39. Kg1 {[%emt 0:00:30]} Qb1+ {[%emt 0:00:30]} 40. Qf1 {[%emt 0:00:30]} Qe4 {[%emt 0:00:30]} 41. Bxc7 {[%emt 0:00:30]} Nf3+ {[%emt 0:00:30]} 42. Kf2 {[%emt 0:00:30]} Nd2 {[%emt 0:00:30]} 43. Qxb5 {[%emt 0:00:30]} Qf3+ {[%emt 0:00:30]} 44. Ke1 {[%emt 0:00:30]} Ne4 {[%emt 0:00:30]} 45. Qe2 {[%emt 0:00:30]} Qh1+ {[%emt 0:00:30]} 46. Qf1 {[%emt 0:00:30]} Nxg3 {[%emt 0:00:30]} 47. Qxh1 {[%emt 0:00:30]} 1-0

[Event "Basque-ch 2019"]
[Site "Getxo"]
[Date "2019.04.27"]
[Round "6.3"]
[White "Argandona Riveiro, Inigo"]
[Black "Munoz Avila, Jose Luis"]
[Result "1-0"]
[ECO "B01"]
[WhiteElo "2411"]
[BlackElo "2146"]
[Annotator "RC"]
[PlyCount "109"]
[EventDate "2019.04.22"]
[EventType "swiss"]
[EventCountry "ESP"]
[SourceTitle "playchess.com"]
[Source "ChessBase"]
[SourceQuality "1"]
[TimeControl "5400+30"]

1. e4 {[%emt 1:30:30]} d5 {[%emt 1:30:30]} 2. exd5 {[%emt 0:00:30]} Nf6 {[%emt 0:00:30]} 3. d4 {[%emt 0:00:30]} Nxd5 4. c4 {[%emt 0:00:30]} Nb6 {[%emt 0:01:00]} 5. Nc3 {[%emt 0:00:30]} e5 {[%emt 0:00:30]} 6. dxe5 {[%emt 0:00:30]} Qxd1+ {[%emt 0:00:30]} 7. Nxd1 {[%emt 0:00:30]} Bb4+ {[%emt 0:00:30]} 8. Bd2 {[%emt 0:00:30]} Bxd2+ {[%emt 0:00:30]} 9. Kxd2 {[%emt 0:00:30]} Nc6 {[%emt 0:00:30]} 10. Nc3 {[%emt 0:00:30]} Be6 {[%emt 0:00:30]} 11. Nf3 {[%emt 0:00:30]} Nxc4+ {[%emt 0:00:30]} 12. Bxc4 {[%emt 0:00:30]} Bxc4 {[%emt 0:00:30]} 13. Rad1 {[%emt 0:00:30]} O-O-O+ {[%emt 0:00:30]} 14. Ke3 {[%emt 0:00:30]} Rde8 {[%emt 0:00:30]} 15. Kf4 {[%emt 0:00:30]} f6 {[%emt 0:00:30]} 16. exf6 {[%emt 0:00:30]} Rhf8 {[%emt 0:00:30]} 17. h3 {[%emt 0:00:30]} Rxf6+ {[%emt 0:00:30]} 18. Kg3 {[%emt 0:00:30]} Rg6+ {[%emt 0:00:30]} 19. Kh2 {[%emt 0:00:30]} Ne5 {[%emt 0:00:30]} 20. Nxe5 {[%emt 0:00:30]} Rxe5 {[%emt 0:00:30]} 21. Rd4 {[%emt 0:00:30]} Be6 {[%emt 0:00:30]} 22. Rhd1 {[%emt 0:00:30]} b6 {[%emt 0:00:30]} 23. R1d3 {[%emt 0:00:30]} Ra5 {[%emt 0:00:30]} 24. a4 {[%emt 0:00:30]} Rf6 {[%emt 0:00:30]} 25. b4 {[%emt 0:00:30]} Raf5 {[%emt 0:00:30]} 26. Ne4 {[%emt 0:00:30]} Rf7 {[%emt 0:00:30]} 27. Rd8+ {[%emt 0:00:30]} Kb7 {[%emt 0:00:30]} 28. Rh8 {[%emt 0:00:30]} Bd7 {[%emt 0:00:30]} 29. b5 {[%emt 0:00:30]} Re5 {[%emt 0:00:30]} 30. f3 {[%emt 0:00:30]} h6 {[%emt 0:00:30]} 31. Rd4 {[%emt 0:00:30]} a6 {[%emt 0:00:30]} 32. f4 {[%emt 0:00:30]} Ree7 {[%emt 0:00:30]} 33. Nc3 {[%emt 0:00:30]} axb5 {[%emt 0:00:30]} 34. axb5 {[%emt 0:00:30]} Re3 {[%emt 0:00:30]} 35. Rc4 {[%emt 0:00:30]} Re8 {[%emt 0:00:30]} 36. Rxe8 {[%emt 0:00:30]} Bxe8 37. Re4 {[%emt 0:00:30]} Bd7 {[%emt 0:01:00]} 38. Kg3 {[%emt 0:00:30]} Kc8 {[%emt 0:00:30]} 39. Re5 {[%emt 0:00:30]} Kd8 {[%emt 0:00:30]} 40. h4 {[%emt 0:00:30]} Re7 {[%emt 0:00:30]} 41. Kf2 {[%emt 0:00:30]} c6 {[%emt 0:00:30]} 42. bxc6 {[%emt 0:00:30]} Bxc6 {[%emt 0:00:30]} 43. g3 {[%emt 0:00:30]} Kd7 {[%emt 0:00:30]} 44. Ke3 Kd6 {[%emt 0:00:30]} 45. Kd4 {[%emt 0:01:00]} Re6 {[%emt 0:00:30]} 46. Nd1 {[%emt 0:00:30]} Rg6 {[%emt 0:00:30]} 47. Ne3 {[%emt 0:00:30]} Bd7 {[%emt 0:00:30]} 48. Nc4+ {[%emt 0:00:30]} Kc7 {[%emt 0:00:30]} 49. Re7 {[%emt 0:00:30]} Rxg3 {[%emt 0:00:30]} 50. Ne5 {[%emt 0:00:30]} Rh3 {[%emt 0:00:30]} 51. Rxd7+ {[%emt 0:00:30]} Kc8 {[%emt 0:00:30]} 52. Rxg7 {[%emt 0:00:30]} Rxh4 {[%emt 0:00:30]} 53. Rf7 {[%emt 0:00:30]} Rh1 {[%emt 0:00:30]} 54. Kd5 {[%emt 0:00:30]} Rc1 {[%emt 0:00:30]} 55. f5 {[%emt 0:00:30]} 1-0

[Event "Basque-ch 2019"]
[Site "Getxo"]
[Date "2019.04.27"]
[Round "6.5"]
[White "Sadusea, Johnny Fernando"]
[Black "Basto Auzmendi, Mario"]
[Result "1-0"]
[ECO "B01"]
[WhiteElo "2150"]
[BlackElo "1981"]
[Annotator "NA"]
[PlyCount "69"]
[EventDate "2019.04.22"]
[EventType "swiss"]
[EventCountry "ESP"]
[SourceTitle "playchess.com"]
[Source "ChessBase"]
[SourceQuality "1"]
[TimeControl "5400+30"]

1. e4 {[%emt 1:30:30]} d5 {[%emt 1:30:30]} 2. exd5 {[%emt 0:00:30]} Nf6 {[%emt 0:00:30]} 3. Nf3 {[%emt 0:00:30]} Qxd5 {[%emt 0:00:30]} 4. Nc3 {[%emt 0:00:30]} Qh5 {[%emt 0:00:30]} 5. h3 {[%emt 0:00:30]} e5 {[%emt 0:00:30]} 6. Be2 {[%emt 0:00:30]} e4 {[%emt 0:00:30]} 7. Nd4 {[%emt 0:00:30]} Qe5 {[%emt 0:00:30]} 8. Nb3 {[%emt 0:00:30]} Nc6 {[%emt 0:00:30]} 9. Bb5 {[%emt 0:00:30]} Bd6 {[%emt 0:00:30]} 10. Bxc6+ {[%emt 0:00:30]} bxc6 {[%emt 0:00:30]} 11. Ne2 {[%emt 0:00:30]} Ba6 {[%emt 0:00:30]} 12. d4 {[%emt 0:00:30]} exd3 {[%emt 0:00:30]} 13. cxd3 {[%emt 0:00:30]} O-O-O {[%emt 0:00:30]} 14. Kf1 {[%emt 0:00:30]} Rhe8 {[%emt 0:00:30]} 15. Nbd4 {[%emt 0:00:30]} Bc5 {[%emt 0:00:30]} 16. Bf4 {[%emt 0:00:30]} Qd5 {[%emt 0:00:30]} 17. Be3 {[%emt 0:00:30]} Bxd4 {[%emt 0:00:30]} 18. Nxd4 {[%emt 0:00:30]} c5 {[%emt 0:00:30]} 19. Nf3 {[%emt 0:00:30]} Qxd3+ {[%emt 0:00:30]} 20. Qxd3 {[%emt 0:00:30]} Rxd3 {[%emt 0:00:30]} 21. Kg1 {[%emt 0:00:30]} c4 {[%emt 0:00:30]} 22. Kh2 {[%emt 0:00:30]} Kb7 {[%emt 0:00:30]} 23. Rac1 {[%emt 0:00:30]} Nd5 {[%emt 0:00:30]} 24. Ne1 {[%emt 0:00:30]} Nxe3 {[%emt 0:00:30]} 25. Nxd3 {[%emt 0:00:30]} cxd3 {[%emt 0:00:30]} 26. fxe3 {[%emt 0:00:30]} Rxe3 {[%emt 0:00:30]} 27. Rce1 {[%emt 0:00:30]} Re6 {[%emt 0:00:30]} 28. Rxe6 {[%emt 0:00:30]} fxe6 {[%emt 0:00:30]} 29. Kg3 {[%emt 0:00:30]} Kb6 {[%emt 0:00:30]} 30. Kf2 {[%emt 0:00:30]} Kc5 {[%emt 0:00:30]} 31. Ke3 {[%emt 0:00:30]} Kd5 {[%emt 0:00:30]} 32. Rf1 {[%emt 0:00:30]} c5 {[%emt 0:00:30]} 33. Rf7 {[%emt 0:00:30]} c4 {[%emt 0:00:30]} 34. Rxa7 {[%emt 0:00:30]} Bb5 {[%emt 0:00:30]} 35. Ra5 {[%emt 0:00:30]} 1-0

[Event "Basque-ch 2019"]
[Site "Getxo"]
[Date "2019.04.27"]
[Round "6.6"]
[White "Prieto Aranguren, Alain"]
[Black "Trigo Urquijo, Sergio"]
[Result "0-1"]
[ECO "A50"]
[WhiteElo "2257"]
[BlackElo "2383"]
[Annotator "ChessBase"]
[PlyCount "138"]
[EventDate "2019.04.22"]
[EventType "swiss"]
[EventCountry "ESP"]
[SourceTitle "playchess.com"]
[Source "ChessBase"]
[SourceQuality "1"]
[TimeControl "5400+30"]

1. d4 {[%emt 1:30:30]} Nf6 {[%emt 1:30:30]} 2. Nf3 {[%emt 0:00:30]} g6 {[%emt 0:00:30]} 3. c4 {[%emt 0:00:30]} Bg7 {[%emt 0:00:30]} 4. g3 {[%emt 0:00:30]} b6 {[%emt 0:00:30]} 5. Bg2 Bb7 6. O-O O-O 7. Nc3 {[%emt 0:01:30]} Ne4 {[%emt 0:01:30]} 8. Nxe4 {[%emt 0:00:30]} Bxe4 {[%emt 0:00:30]} 9. Qd2 {[%emt 0:00:30]} Nc6 {[%emt 0:00:30]} 10. e3 {[%emt 0:00:30]} d5 {[%emt 0:00:30]} 11. b3 {[%emt 0:00:30]} e5 {[%emt 0:00:30]} 12. Nxe5 {[%emt 0:00:30]} Nxe5 {[%emt 0:00:30]} 13. dxe5 {[%emt 0:00:30]} Bxe5 {[%emt 0:00:30]} 14. Bb2 {[%emt 0:00:30]} Bxb2 {[%emt 0:00:30]} 15. Qxb2 {[%emt 0:00:30]} Bxg2 {[%emt 0:00:30]} 16. Kxg2 {[%emt 0:00:30]} dxc4 {[%emt 0:00:30]} 17. bxc4 {[%emt 0:00:30]} Qe7 {[%emt 0:00:30]} 18. Qc3 {[%emt 0:00:30]} Rad8 {[%emt 0:00:30]} 19. Rad1 {[%emt 0:00:30]} h5 {[%emt 0:00:30]} 20. h4 {[%emt 0:00:30]} Rd6 {[%emt 0:00:30]} 21. Rxd6 {[%emt 0:00:30]} Qxd6 {[%emt 0:00:30]} 22. Qd4 {[%emt 0:00:30]} Qa3 {[%emt 0:00:30]} 23. Rd1 {[%emt 0:00:30]} c5 {[%emt 0:00:30]} 24. Qd2 {[%emt 0:00:30]} Qa4 {[%emt 0:00:30]} 25. Rc1 {[%emt 0:00:30]} Re8 {[%emt 0:00:30]} 26. Rc2 {[%emt 0:00:30]} Qc6+ {[%emt 0:00:30]} 27. Kg1 {[%emt 0:00:30]} Qe4 {[%emt 0:00:30]} 28. Rc3 {[%emt 0:00:30]} Kh7 {[%emt 0:00:30]} 29. Qd3 {[%emt 0:00:30]} Qg4 {[%emt 0:00:30]} 30. Rc2 {[%emt 0:00:30]} Re4 {[%emt 0:00:30]} 31. Qd5 {[%emt 0:00:30]} Kg7 {[%emt 0:00:30]} 32. Kg2 {[%emt 0:00:30]} Re7 {[%emt 0:00:30]} 33. Rd2 {[%emt 0:00:30]} Qe4+ {[%emt 0:00:30]} 34. Qxe4 {[%emt 0:00:30]} Rxe4 {[%emt 0:00:30]} 35. Rc2 {[%emt 0:00:30]} Kf6 {[%emt 0:00:30]} 36. Kf3 {[%emt 0:00:30]} Ke5 {[%emt 0:00:30]} 37. Ke2 {[%emt 0:00:30]} Kd6 {[%emt 0:00:30]} 38. Kd3 {[%emt 0:00:30]} Re6 {[%emt 0:00:30]} 39. Rb2 {[%emt 0:00:30]} Kc6 {[%emt 0:00:30]} 40. Kc2 {[%emt 0:00:30]} Rf6 {[%emt 0:00:30]} 41. Kd3 {[%emt 0:00:30]} Rd6+ {[%emt 0:00:30]} 42. Ke2 {[%emt 0:00:30]} Kb7 {[%emt 0:00:30]} 43. Rb3 {[%emt 0:00:30]} Rd8 {[%emt 0:00:30]} 44. Ke1 {[%emt 0:00:30]} a6 {[%emt 0:00:30]} 45. Ke2 {[%emt 0:00:30]} Rd7 46. Rb2 {[%emt 0:00:30]} Kc6 {[%emt 0:01:00]} 47. a4 {[%emt 0:00:30]} Rd8 {[%emt 0:00:30]} 48. Rb1 {[%emt 0:00:30]} Rb8 {[%emt 0:00:30]} 49. Rb2 {[%emt 0:00:30]} b5 {[%emt 0:00:30]} 50. axb5+ {[%emt 0:00:30]} axb5 {[%emt 0:00:30]} 51. cxb5+ {[%emt 0:00:30]} Rxb5 {[%emt 0:00:30]} 52. Ra2 {[%emt 0:00:30]} c4 {[%emt 0:00:30]} 53. Kd2 {[%emt 0:00:30]} Rf5 {[%emt 0:00:30]} 54. f4 {[%emt 0:00:30]} Rd5+ {[%emt 0:00:30]} 55. Ke2 {[%emt 0:00:30]} Kb5 {[%emt 0:00:30]} 56. Ra7 {[%emt 0:00:30]} f5 {[%emt 0:00:30]} 57. Rb7+ {[%emt 0:00:30]} Kc5 {[%emt 0:00:30]} 58. Rc7+ {[%emt 0:00:30]} Kb5 {[%emt 0:00:30]} 59. Rb7+ {[%emt 0:00:30]} Kc6 {[%emt 0:00:30]} 60. Rb4 {[%emt 0:00:30]} Kc5 {[%emt 0:00:30]} 61. Rb8 {[%emt 0:00:30]} c3 {[%emt 0:00:30]} 62. e4 {[%emt 0:00:30]} fxe4 {[%emt 0:00:30]} 63. Ke3 {[%emt 0:00:30]} Kc4 {[%emt 0:00:30]} 64. Rb1 {[%emt 0:00:30]} c2 {[%emt 0:00:30]} 65. Rc1 {[%emt 0:00:30]} Kc3 {[%emt 0:00:30]} 66. Kxe4 {[%emt 0:00:30]} Rd1 {[%emt 0:00:30]} 67. Rxc2+ {[%emt 0:00:30]} Kxc2 {[%emt 0:00:30]} 68. f5 {[%emt 0:00:30]} Re1+ {[%emt 0:00:30]} 69. Kd4 {[%emt 0:00:30]} Kd1 {[%emt 0:00:30]} 0-1

[Event "Basque-ch 2019"]
[Site "Getxo"]
[Date "2019.04.28"]
[Round "7.4"]
[White "Lakuntza Plazaola, Asier"]
[Black "Sadusea, Johnny Fernando"]
[Result "1-0"]
[ECO "D36"]
[WhiteElo "2153"]
[BlackElo "2150"]
[Annotator "NA"]
[PlyCount "109"]
[EventDate "2019.04.22"]
[EventType "swiss"]
[EventCountry "ESP"]
[SourceTitle "playchess.com"]
[Source "ChessBase"]
[SourceQuality "1"]
[TimeControl "5400+30"]

1. d4 {[%emt 1:30:30]} Nf6 {[%emt 1:30:30]} 2. c4 {[%emt 0:00:30]} e6 {[%emt 0:00:30]} 3. Nc3 {[%emt 0:00:30]} d5 {[%emt 0:00:30]} 4. cxd5 {[%emt 0:00:30]} exd5 {[%emt 0:00:30]} 5. Bg5 {[%emt 0:00:30]} Be7 {[%emt 0:00:30]} 6. e3 {[%emt 0:00:30]} O-O {[%emt 0:00:30]} 7. Bd3 {[%emt 0:00:30]} Nbd7 {[%emt 0:00:30]} 8. Nf3 {[%emt 0:00:30]} Re8 {[%emt 0:00:30]} 9. O-O {[%emt 0:00:30]} Nf8 {[%emt 0:00:30]} 10. h3 {[%emt 0:00:30]} c6 {[%emt 0:00:30]} 11. Qc2 $14 {[%emt 0:00:30]} Ng6 {[%emt 0:00:30]} 12. Bxf6 {[%emt 0:00:30]} Bxf6 {[%emt 0:00:30]} 13. b4 {[%emt 0:00:30]} Qd6 {[%emt 0:00:30]} 14. Rab1 {[%emt 0:00:30]} Bd8 {[%emt 0:00:30]} 15. Rfc1 {[%emt 0:00:30]} Qf6 {[%emt 0:00:30]} 16. Qd1 {[%emt 0:00:30]} Nh4 {[%emt 0:00:30]} 17. Nxh4 {[%emt 0:00:30]} Qxh4 {[%emt 0:00:30]} 18. b5 {[%emt 0:00:30]} Re6 {[%emt 0:00:30]} 19. Bf5 {[%emt 0:00:30]} Rf6 {[%emt 0:00:30]} 20. g3 {[%emt 0:00:30]} Qg5 {[%emt 0:00:30]} 21. Bxc8 {[%emt 0:00:30]} Rxc8 {[%emt 0:00:30]} 22. Qg4 {[%emt 0:00:30]} Qxg4 {[%emt 0:00:30]} 23. hxg4 {[%emt 0:00:30]} Rd6 {[%emt 0:00:30]} 24. Na4 {[%emt 0:00:30]} Kf8 {[%emt 0:00:30]} 25. bxc6 {[%emt 0:00:30]} bxc6 {[%emt 0:00:30]} 26. Rb7 {[%emt 0:00:30]} Ra8 {[%emt 0:00:30]} 27. Nc5 {[%emt 0:00:30]} Ke8 {[%emt 0:00:30]} 28. Na6 {[%emt 0:00:30]} Rc8 {[%emt 0:00:30]} 29. Rxa7 {[%emt 0:00:30]} Rd7 {[%emt 0:00:30]} 30. Rxd7 {[%emt 0:00:30]} Kxd7 {[%emt 0:00:30]} 31. Rb1 {[%emt 0:00:30]} Be7 {[%emt 0:00:30]} 32. Rb7+ {[%emt 0:00:30]} Kd8 {[%emt 0:00:30]} 33. Ra7 {[%emt 0:00:30]} Ke8 {[%emt 0:00:30]} 34. a4 {[%emt 0:00:30]} Bd6 {[%emt 0:00:30]} 35. Kf1 {[%emt 0:00:30]} Rd8 {[%emt 0:00:30]} 36. Nc5 {[%emt 0:00:30]} Rb8 {[%emt 0:00:30]} 37. a5 {[%emt 0:00:30]} Rb5 {[%emt 0:00:30]} 38. a6 {[%emt 0:00:30]} Bxc5 {[%emt 0:00:30]} 39. dxc5 {[%emt 0:00:30]} Ra5 {[%emt 0:00:30]} 40. g5 {[%emt 0:00:30]} g6 {[%emt 0:00:30]} 41. Ke2 {[%emt 0:00:30]} Kf8 {[%emt 0:00:30]} 42. Kd3 {[%emt 0:00:30]} Rxc5 {[%emt 0:00:30]} 43. Rc7 {[%emt 0:00:30]} Kg7 {[%emt 0:00:30]} 44. Kd4 {[%emt 0:00:30]} Ra5 {[%emt 0:00:30]} 45. Rxc6 {[%emt 0:00:30]} h6 {[%emt 0:00:30]} 46. gxh6+ {[%emt 0:00:30]} Kxh6 {[%emt 0:00:30]} 47. Ke5 {[%emt 0:00:30]} Ra2 {[%emt 0:00:30]} 48. f3 {[%emt 0:00:30]} Ra3 {[%emt 0:00:30]} 49. Kxd5 {[%emt 0:00:30]} Rxe3 {[%emt 0:00:30]} 50. a7 {[%emt 0:00:30]} Ra3 {[%emt 0:00:30]} 51. Rc7 {[%emt 0:00:30]} Kg7 {[%emt 0:00:30]} 52. Kc6 {[%emt 0:00:30]} Ra2 {[%emt 0:00:30]} 53. Kb7 {[%emt 0:00:30]} Rb2+ {[%emt 0:00:30]} 54. Kc8 {[%emt 0:00:30]} Ra2 {[%emt 0:00:30]} 55. Kb8 {[%emt 0:00:30]} 1-0

[Event "Basque-ch 2019"]
[Site "Getxo"]
[Date "2019.04.28"]
[Round "7.6"]
[White "Basto Auzmendi, Mario"]
[Black "Martinez Fernandez, Adrian"]
[Result "0-1"]
[ECO "B50"]
[WhiteElo "1981"]
[BlackElo "2318"]
[Annotator "NA"]
[PlyCount "57"]
[EventDate "2019.04.22"]
[EventType "swiss"]
[EventCountry "ESP"]
[SourceTitle "playchess.com"]
[Source "ChessBase"]
[SourceQuality "1"]
[TimeControl "5400+30"]

1. e4 {[%emt 1:30:30]} c5 {[%emt 1:30:30]} 2. Nf3 {[%emt 0:00:30]} d6 {[%emt 0:00:30]} 3. c3 {[%emt 0:00:30]} Nf6 {[%emt 0:00:30]} 4. Be2 {[%emt 0:00:30]} g6 {[%emt 0:00:30]} 5. O-O {[%emt 0:00:30]} Bg7 {[%emt 0:00:30]} 6. e5 {[%emt 0:00:30]} dxe5 {[%emt 0:00:30]} 7. Nxe5 {[%emt 0:00:30]} O-O {[%emt 0:00:30]} 8. d4 {[%emt 0:00:30]} cxd4 {[%emt 0:00:30]} 9. cxd4 $11 {[%emt 0:00:30]} Nbd7 {[%emt 0:00:30]} 10. Nc3 {[%emt 0:00:30]} Nb6 {[%emt 0:00:30]} 11. Bf3 {[%emt 0:00:30]} Nfd5 {[%emt 0:00:30]} 12. Nxd5 {[%emt 0:00:30]} Nxd5 {[%emt 0:00:30]} 13. Qb3 {[%emt 0:00:30]} Nb6 {[%emt 0:00:30]} 14. Rd1 {[%emt 0:00:30]} Be6 {[%emt 0:00:30]} 15. d5 {[%emt 0:00:30]} Bf5 {[%emt 0:00:30]} 16. Bf4 {[%emt 0:00:30]} Rc8 {[%emt 0:00:30]} 17. Rac1 {[%emt 0:00:30]} Rxc1 {[%emt 0:00:30]} 18. Rxc1 {[%emt 0:00:30]} Qd6 {[%emt 0:00:30]} 19. Nd3 {[%emt 0:00:30]} e5 {[%emt 0:00:30]} 20. Be3 {[%emt 0:00:30]} e4 {[%emt 0:00:30]} 21. Bc5 {[%emt 0:00:30]} Qd8 {[%emt 0:00:30]} 22. g4 {[%emt 0:00:30]} exf3 {[%emt 0:00:30]} 23. gxf5 {[%emt 0:00:30]} Re8 {[%emt 0:00:30]} 24. Kh1 {[%emt 0:00:30]} Nxd5 {[%emt 0:00:30]} 25. fxg6 {[%emt 0:00:30]} hxg6 {[%emt 0:00:30]} 26. Qxb7 {[%emt 0:00:30]} Qg5 {[%emt 0:00:30]} 27. Rg1 {[%emt 0:00:30]} Qf5 {[%emt 0:00:30]} 28. Qb3 {[%emt 0:00:30]} a6 {[%emt 0:00:30]} 29. Ne1 {[%emt 0:00:30]} 0-1